bitfinex-derivatives/quotes_BNBF0:USTF0_20250315
["timestamp","ask_amount","ask_price","bid_price","bid_amount"]
[1742081749949,1.271,618.94,617.95,0.9204221]
[1742081750154,1.271,618.94,617.96,0.9204221]
[1742081750356,1.271,618.94,617.97,0.9204221]
[1742081750556,1.271,618.94,617.98,0.9204221]
[1742081750757,1.271,618.94,617.99,0.9204221]
[1742081750958,1.271,618.94,618.0,0.9204221]
[1742081751155,1.271,618.94,618.01,0.9204221]
[1742081751356,1.271,618.94,618.02,0.9204221]
[1742081751557,1.271,618.94,618.03,0.9204221]
[1742081751858,1.271,618.94,618.04,0.9204221]
[1742081752049,1.271,618.94,618.05,0.9204221]
[1742081752255,1.271,618.94,618.06,0.9204221]
[1742081752451,1.271,618.94,618.07,0.9204221]
[1742081752651,1.271,618.94,618.08,0.9204221]
[1742081752950,1.271,618.94,618.09,0.9204221]
[1742081753154,1.271,618.94,618.1,0.9204221]
[1742081753349,1.271,618.94,618.11,0.9204221]
[1742081753552,1.271,618.94,618.12,0.92030716]
[1742081753756,1.271,618.94,618.13,0.92030716]
[1742081753955,1.271,618.94,617.92,0.32366649]
[1742081753956,1.271,618.94,618.14,0.92030716]
[1742081754157,1.271,618.94,618.15,0.92030716]
[1742081754354,1.271,618.94,618.16,0.92030716]
[1742081754554,1.271,618.94,618.17,0.92030716]
[1742081754754,1.271,618.94,618.18,0.92030716]
[1742081755061,1.271,618.94,618.19,0.92030716]
[1742081755254,1.271,618.94,618.2,0.92030716]
[1742081755454,1.271,618.94,618.21,0.92030716]
[1742081755655,1.271,618.94,618.22,0.92030716]
[1742081755856,1.271,618.94,618.23,0.92030716]
[1742081756156,1.271,618.94,618.24,0.92030716]
[1742081756355,1.271,618.94,617.92,0.32366649]
[1742081756556,1.271,618.94,617.93,0.91945823]
[1742081756752,1.271,618.94,617.94,0.32365601]
[1742081756959,1.271,618.94,617.95,0.91945823]
[1742081757257,1.271,618.94,617.96,1.24312715]
[1742081757458,1.271,618.94,617.97,1.24312191]
[1742081757657,1.271,618.94,617.98,0.32363506]
[1742081758058,1.271,618.94,617.99,0.91954394]
[1742081758258,1.271,618.94,618.0,1.24316853]
[1742081758455,1.271,618.94,618.01,1.24316329]
[1742081758651,1.271,618.94,618.02,0.91954394]
[1742081758856,1.271,618.94,618.03,0.91954394]
[1742081759055,1.271,618.94,618.04,0.91954394]
[1742081759256,1.271,618.94,618.05,0.91955023]
[1742081759455,1.271,618.94,618.06,0.91955023]
[1742081759657,1.271,618.94,618.07,0.91955023]
[1742081759859,1.271,618.94,618.08,0.91955023]
[1742081760062,1.271,618.94,618.09,0.91955023]
[1742081760253,1.271,618.94,618.1,0.91955023]
[1742081760456,1.271,618.94,618.11,0.91955023]
[1742081760654,1.271,618.94,618.12,0.91955023]
[1742081760853,1.271,618.94,618.13,0.91955023]
[1742081761058,1.271,618.94,618.14,0.91955023]
[1742081761259,1.271,618.94,618.15,0.91955023]
[1742081761460,1.271,618.94,618.16,0.91955023]
[1742081761759,1.271,618.94,618.17,0.91955023]
[1742081761960,1.271,618.94,618.18,0.91955023]
[1742081762259,1.271,618.94,618.19,0.91955023]
[1742081762459,1.271,618.94,618.2,0.91955023]
[1742081762654,1.271,618.94,618.21,0.91955023]
[1742081762856,1.271,618.94,618.22,0.91955023]
[1742081763058,1.271,618.94,618.23,0.91955023]
[1742081763258,1.271,618.94,618.24,0.91955023]
[1742081763469,1.271,618.94,618.25,0.91955023]
[1742081763661,1.271,618.94,618.26,0.91955023]
[1742081763860,1.271,618.94,618.27,0.91955023]
[1742081764060,1.271,618.94,618.28,0.91955023]
[1742081764260,1.271,618.94,618.29,0.91955023]
[1742081764462,1.271,618.94,618.3,0.91955023]
[1742081764664,1.271,618.94,618.31,0.91955023]
[1742081764862,1.271,618.94,618.32,0.91955023]
[1742081765163,1.271,618.94,618.33,0.91955023]
[1742081765364,1.271,618.94,618.34,0.91955023]
[1742081765564,1.271,618.94,618.35,0.91955023]
[1742081765764,1.271,618.94,618.36,0.91955023]
[1742081765967,1.271,618.94,618.37,0.91955023]
[1742081766161,1.271,618.94,618.38,0.91955023]
[1742081766361,1.271,618.94,618.39,0.91955023]
[1742081766561,1.271,618.94,618.4,0.91955023]
[1742081766761,1.271,618.94,618.41,0.91955023]
[1742081766965,0.02,618.97,618.42,0.91955023]
[1742081767163,0.02,618.97,618.43,0.91955023]
[1742081767362,0.02,618.97,618.44,0.91955023]
[1742081767566,0.02,618.97,618.45,0.91955023]
[1742081767865,0.02,618.97,618.46,0.91955023]
[1742081768069,0.02,618.97,618.47,0.91955023]
[1742081768367,0.02,618.97,618.48,0.91955023]
[1742081768572,0.02,618.97,618.49,0.91955023]
[1742081768869,0.02,618.97,618.02,0.32361412]
[1742081769070,0.02,618.97,618.03,1.21598515]
[1742081769271,0.02,618.97,618.04,1.24258164]
[1742081769469,0.02,618.97,618.05,1.53958356]
[1742081769665,0.766,618.96,618.06,1.21598515]
[1742081769869,0.766,618.96,618.07,1.21598445]
[1742081770066,0.766,618.96,618.08,2.38356715]
[1742081770372,0.766,618.96,618.09,1.24255546]
[1742081770671,0.425,618.95,618.1,1.24251987]
[1742081770871,0.425,618.95,618.11,1.24251464]
[1742081771172,0.425,618.95,618.12,1.2425094]
[1742081771370,0.425,618.95,618.13,0.91894764]
[1742081771671,0.425,618.95,618.14,1.24249893]
[1742081771869,0.425,618.95,618.15,1.2424937]
[1742081772065,0.425,618.95,618.16,1.24248847]
[1742081772264,0.425,618.95,618.17,0.91894764]
[1742081772468,0.425,618.95,618.18,0.91894764]
[1742081772670,0.425,618.95,618.16,0.32354083]
[1742081772671,0.425,618.95,618.19,0.91903847]
[1742081772872,0.425,618.95,618.2,0.91903847]
[1742081773069,0.425,618.95,618.21,0.91903847]
[1742081773371,0.425,618.95,618.22,0.91903847]
[1742081773568,0.425,618.95,618.23,0.91903847]
[1742081773769,0.425,618.95,618.24,0.91903847]
[1742081773965,0.425,618.95,618.25,0.91903847]
[1742081774169,0.425,618.95,618.26,0.91903847]
[1742081774370,0.425,618.95,618.27,0.91903847]
[1742081774570,0.425,618.95,618.28,0.91903847]
[1742081774872,0.425,618.95,618.29,0.91903847]
[1742081775172,0.425,618.95,618.3,0.91903847]
[1742081775369,0.425,618.95,618.16,0.32354083]
[1742081775370,0.425,618.95,618.31,0.91903847]
[1742081775565,0.425,618.95,618.32,0.91903847]
[1742081775764,0.425,618.95,618.33,0.91903847]
[1742081775969,0.425,618.95,618.34,0.91903847]
[1742081776169,0.425,618.95,618.35,0.91903847]
[1742081776367,0.425,618.95,618.36,0.91903847]
[1742081776565,0.425,618.95,618.37,0.91903847]
[1742081776871,0.425,618.95,618.38,0.91903847]
[1742081777071,0.425,618.95,618.39,0.91903847]
[1742081777271,0.425,618.95,618.4,0.91903847]
[1742081777572,0.425,618.95,618.41,0.91903847]
[1742081777772,0.425,618.95,618.16,0.32354083]
[1742081777975,0.425,618.95,618.17,0.91895879]
[1742081778178,0.425,618.95,618.18,0.91895879]
[1742081778376,0.425,618.95,618.19,0.91895879]
[1742081778576,0.425,618.95,618.18,0.784]
[1742081778777,0.425,618.95,618.19,0.91890968]
[1742081778981,0.425,618.95,618.2,0.91890968]
[1742081779182,0.425,618.95,618.21,0.91890968]
[1742081779383,0.425,618.95,618.22,0.91890968]
[1742081779677,0.425,618.95,618.23,0.91890968]
[1742081779882,0.425,618.95,618.24,0.91890968]
[1742081780079,0.425,618.95,618.25,0.91890968]
[1742081780275,0.425,618.95,618.26,0.91890968]
[1742081780476,0.425,618.95,618.27,0.91890968]
[1742081780680,0.425,618.95,618.28,0.91890968]
[1742081780881,0.425,618.95,618.29,0.91890968]
[1742081781079,0.425,618.95,618.3,0.91890968]
[1742081781280,0.425,618.95,618.31,0.91890968]
[1742081781581,0.425,618.95,618.32,0.91890968]
[1742081781882,0.425,618.95,618.33,0.91890968]
[1742081782083,0.425,618.95,618.34,0.91890968]
[1742081782384,0.425,618.95,618.35,0.91890968]
[1742081782581,0.425,618.95,618.36,0.91890968]
[1742081782779,0.425,618.95,618.37,0.91890968]
[1742081782978,0.425,618.95,618.38,0.91890968]
[1742081783182,0.425,618.95,618.39,0.91890968]
[1742081783383,0.425,618.95,618.4,0.91890968]
[1742081783583,0.425,618.95,618.41,0.91890968]
[1742081783784,0.425,618.95,618.42,0.91890968]
[1742081784084,0.425,618.95,618.43,0.91890968]
[1742081784384,0.425,618.95,618.44,0.91890968]
[1742081784585,0.425,618.95,618.45,0.91890968]
[1742081784784,0.425,618.95,618.46,0.91890968]
[1742081784985,0.425,618.95,618.47,0.91890968]
[1742081785179,0.425,618.95,618.48,0.91890968]
[1742081785379,0.425,618.95,618.2,0.94]
[1742081785582,0.425,618.95,618.21,0.91814876]
[1742081785779,0.425,618.95,618.22,0.91814876]
[1742081785985,0.425,618.95,618.23,0.91814876]
[1742081786185,0.425,618.95,618.24,0.91814876]
[1742081786386,0.425,618.95,618.25,0.91814876]
[1742081786582,0.425,618.95,618.26,0.91814876]
[1742081786786,0.425,618.95,618.27,0.91814876]
[1742081786986,0.425,618.95,618.28,0.91814876]
[1742081787187,0.425,618.95,618.29,0.91814876]
[1742081787382,0.425,618.95,618.3,0.91814876]
[1742081787588,0.425,618.95,618.31,0.91814876]
[1742081787784,0.425,618.95,618.32,0.91814876]
[1742081787980,0.425,618.95,618.33,0.91814876]
[1742081788186,0.425,618.95,618.34,0.91814876]
[1742081788382,0.425,618.95,618.35,0.91814876]
[1742081788586,0.425,618.95,618.36,0.91814876]
[1742081788786,0.425,618.95,618.2,0.94]
[1742081788988,0.425,618.95,618.21,0.91896453]
[1742081789188,0.425,618.95,618.22,0.91896453]
[1742081789389,0.425,618.95,618.23,0.91896453]
[1742081789591,0.425,618.95,618.24,0.91896453]
[1742081789890,0.425,618.95,618.25,0.91896453]
[1742081790085,0.425,618.95,618.26,0.91896453]
[1742081790287,0.425,618.95,618.27,0.91896453]
[1742081790489,0.425,618.95,618.28,0.91896453]
[1742081790689,0.425,618.95,618.29,0.91943684]
[1742081790892,0.425,618.95,618.3,0.91943684]
[1742081791191,0.425,618.95,618.31,0.91943684]
[1742081791388,0.425,618.95,618.32,0.91943684]
[1742081791589,0.425,618.95,618.33,0.91943684]
[1742081791788,0.425,618.95,618.2,0.94]
[1742081791789,0.425,618.95,618.34,0.91943684]
[1742081791989,0.425,618.95,618.35,0.91943684]
[1742081792287,0.425,618.95,618.36,0.91943684]
[1742081792492,0.425,618.95,618.37,0.91943684]
[1742081792686,0.425,618.95,618.36,0.764]
[1742081792687,0.425,618.95,618.38,0.9196806]
[1742081792886,0.425,618.95,618.39,0.9196806]
[1742081793086,0.425,618.95,618.4,0.9196806]
[1742081793293,0.425,618.95,618.41,0.9196806]
[1742081793497,0.425,618.95,618.42,0.9196806]
[1742081793797,0.766,618.96,618.43,0.9196806]
[1742081793997,0.766,618.96,618.36,0.764]
[1742081794192,0.766,618.96,618.37,0.91994116]
[1742081794396,0.766,618.96,618.38,0.91994116]
[1742081794596,0.766,618.96,618.39,0.91994116]
[1742081794793,0.766,618.96,618.4,0.91994116]
[1742081794995,0.766,618.96,618.41,0.91994116]
[1742081795194,0.766,618.96,618.42,0.91994116]
[1742081795395,0.766,618.96,618.43,0.91994116]
[1742081795594,0.766,618.96,618.44,0.91994116]
[1742081795795,0.02,618.97,618.45,0.91994116]
[1742081796097,0.02,618.97,618.41,0.9]
[1742081796301,0.02,618.97,618.42,0.9202729]
[1742081796495,0.02,618.97,618.41,0.9]
[1742081796698,0.02,618.97,618.42,0.92051139]
[1742081796900,0.02,618.97,618.43,0.92051139]
[1742081797100,0.02,618.97,618.44,0.92051139]
[1742081797401,0.02,618.97,618.45,0.92051139]
[1742081797600,0.02,618.97,618.46,0.92051139]
[1742081797802,0.02,618.97,618.47,0.92051139]
[1742081797996,0.02,618.97,618.41,0.9]
[1742081798195,0.02,618.97,618.42,0.92086448]
[1742081798396,0.02,618.97,618.41,0.9]
[1742081798397,0.02,618.97,618.43,0.92086448]
[1742081798594,0.02,618.97,618.44,0.92103801]
[1742081798799,0.02,618.97,618.45,0.92103801]
[1742081799100,0.02,618.97,618.41,0.9]
[1742081799101,0.02,618.97,618.46,0.92103801]
[1742081799300,0.02,618.97,618.47,0.92103801]
[1742081799498,0.02,618.97,618.48,0.92103801]
[1742081799699,0.02,618.97,618.41,1.596]
[1742081799901,0.02,618.97,618.42,0.92125642]
[1742081800105,0.02,618.97,618.43,0.92125642]
[1742081800396,0.02,618.97,618.44,0.92125642]
[1742081800601,0.02,618.97,618.45,0.92125642]
[1742081800801,0.02,618.97,618.46,0.92125642]
[1742081801004,0.02,618.97,618.47,0.92125642]
[1742081801198,0.02,618.97,618.48,0.92125642]
[1742081801403,0.02,618.97,618.49,0.92125642]
[1742081801606,0.02,618.97,618.41,1.596]
[1742081801804,0.02,618.97,618.42,0.92172099]
[1742081802105,0.02,618.97,618.43,0.92172099]
[1742081802305,0.02,618.97,618.44,0.92172099]
[1742081802507,0.02,618.97,618.45,0.92172099]
[1742081802700,0.02,618.97,618.46,0.92172099]
[1742081802904,0.02,618.97,618.47,0.92172099]
[1742081803100,0.02,618.97,618.48,0.92172099]
[1742081803300,0.02,618.97,618.49,0.92172099]
[1742081803501,0.02,618.97,618.5,0.92172099]
[1742081803805,0.02,618.97,618.51,0.92172099]
[1742081804007,0.02,618.97,618.42,0.881]
[1742081804202,0.02,618.97,618.43,0.92209431]
[1742081804408,0.02,618.97,618.44,0.92209431]
[1742081804604,0.02,618.97,618.45,0.92209431]
[1742081804805,0.02,618.97,618.46,0.92209431]
[1742081805105,0.02,618.97,618.47,0.92209431]
[1742081805407,0.02,618.97,618.42,0.881]
[1742081805408,0.02,618.97,618.48,0.92209431]
[1742081805607,0.02,618.97,618.49,0.92209431]
[1742081805903,0.02,618.97,618.5,0.92209431]
[1742081806207,0.02,618.97,618.51,0.92209431]
[1742081806407,0.02,618.97,618.52,0.92209431]
[1742081806707,0.02,618.97,618.42,1.857]
[1742081806913,0.02,618.97,618.43,0.92238669]
[1742081807106,0.02,618.97,618.44,0.92238669]
[1742081807305,0.02,618.97,618.45,0.92238669]
[1742081807607,0.02,618.97,618.46,0.92238669]
[1742081807807,0.02,618.97,618.47,0.92238669]
[1742081808007,0.02,618.97,618.48,0.92238669]
[1742081808207,0.02,618.97,618.49,0.92238669]
[1742081808401,0.02,618.97,618.42,1.857]
[1742081808402,0.02,618.97,618.5,0.92238669]
[1742081808707,0.02,618.97,618.51,0.92238669]
[1742081808902,0.02,618.97,618.52,0.92238669]
[1742081809107,0.02,618.97,618.53,0.92238669]
[1742081809409,0.02,618.97,618.42,1.857]
[1742081809609,0.02,618.97,618.43,0.92285394]
[1742081809809,0.02,618.97,618.44,0.92285394]
[1742081810009,0.02,618.97,618.45,0.92285394]
[1742081810308,0.02,618.97,618.42,1.857]
[1742081810309,0.02,618.97,618.46,0.92285394]
[1742081810503,0.02,618.97,618.47,0.92285394]
[1742081810705,0.02,618.97,618.48,0.92285394]
[1742081810905,0.02,618.97,618.49,0.92285394]
[1742081811103,0.02,618.97,618.5,0.92285394]
[1742081811308,0.02,618.97,618.51,0.92296906]
[1742081811509,0.02,618.97,618.52,0.92296906]
[1742081811705,0.02,618.97,618.53,0.92296906]
[1742081811909,0.02,618.97,618.42,2.741]
[1742081812211,0.02,618.97,618.43,0.92297538]
[1742081812411,0.02,618.97,618.44,0.92297538]
[1742081812611,0.02,618.97,618.45,0.92306973]
[1742081812812,0.02,618.97,618.46,0.92306973]
[1742081813014,0.02,618.97,618.47,0.92306973]
[1742081813211,0.02,618.97,618.48,0.92306973]
[1742081813413,0.02,618.97,618.49,0.92306973]
[1742081813609,0.02,618.97,618.5,0.92306973]
[1742081813809,0.02,618.97,618.51,0.92306973]
[1742081814008,0.02,618.97,618.52,0.92306973]
[1742081814213,0.02,618.97,618.53,0.92306973]
[1742081814415,0.02,618.97,618.54,0.92306973]
[1742081814714,0.02,618.97,618.55,0.92312166]
[1742081814915,0.02,618.97,618.42,3.539]
[1742081815115,0.02,618.97,618.43,0.9231163]
[1742081815315,0.02,618.97,618.44,0.9231163]
[1742081815515,0.02,618.97,618.45,0.9231163]
[1742081815716,0.02,618.97,618.46,0.9231163]
[1742081816015,0.02,618.97,618.47,0.9231163]
[1742081816211,0.02,618.97,618.48,0.9231163]
[1742081816416,0.02,618.97,618.49,0.9231163]
[1742081816617,0.02,618.97,618.5,0.9231163]
[1742081816817,0.02,618.97,618.51,0.9231163]
[1742081817117,0.02,618.97,618.52,0.9231163]
[1742081817318,0.02,618.97,618.53,0.9231163]
[1742081817512,0.02,618.97,618.54,0.9231163]
[1742081817715,0.02,618.97,618.55,0.9231163]
[1742081817914,0.02,618.97,618.42,3.539]
[1742081818313,0.02,618.97,618.43,0.9231397]
[1742081818716,0.02,618.97,618.44,0.9231397]
[1742081819417,0.02,618.97,618.45,0.9231397]
[1742081819616,0.02,618.97,618.46,0.9231397]
[1742081819812,0.02,618.97,618.47,0.92277949]
[1742081820013,0.02,618.97,618.48,0.92277949]
[1742081820320,0.02,618.97,618.49,0.92277949]
[1742081820614,0.02,618.97,618.5,0.92277949]
[1742081820818,0.02,618.97,618.51,0.92277949]
[1742081821119,0.02,618.97,618.52,0.92277949]
[1742081821318,0.02,618.97,618.53,0.92277949]
[1742081821518,0.02,618.97,618.54,0.92277949]
[1742081821719,0.02,618.97,618.55,0.92277949]
[1742081822018,0.02,618.97,618.56,0.92277949]
[1742081822217,0.02,618.97,618.57,0.92277949]
[1742081822412,0.02,618.97,618.58,0.92277949]
[1742081822617,0.02,618.97,618.59,0.92277949]
[1742081822921,0.02,618.97,618.6,0.92277949]
[1742081823115,0.02,618.97,618.42,4.19]
[1742081823315,0.02,618.97,618.43,0.92271133]
[1742081823515,0.02,618.97,618.44,0.92271133]
[1742081823715,0.02,618.97,618.45,0.92271133]
[1742081823919,0.02,618.97,618.46,0.92271133]
[1742081824115,0.02,618.97,618.47,0.92271133]
[1742081824320,0.02,618.97,618.48,0.92271133]
[1742081824517,0.02,618.97,618.49,0.92271133]
[1742081824722,0.02,618.97,618.5,0.92271133]
[1742081824922,0.02,618.97,618.51,0.92271133]
[1742081825118,0.02,618.97,618.52,0.92271133]
[1742081825318,0.02,618.97,618.53,0.92271133]
[1742081825518,0.02,618.97,618.54,0.92271133]
[1742081825722,0.02,618.97,618.55,0.92271133]
[1742081826025,0.02,618.97,618.56,0.92271133]
[1742081826227,0.02,618.97,618.57,0.92271133]
[1742081826425,0.02,618.97,618.58,0.92271133]
[1742081826625,0.02,618.97,618.42,4.19]
[1742081826821,0.02,618.97,618.43,0.92300135]
[1742081827024,0.02,618.97,618.44,0.92300135]
[1742081827221,0.02,618.97,618.45,0.92299703]
[1742081827426,0.02,618.97,618.46,0.92299703]
[1742081827629,0.02,618.97,618.47,0.92299703]
[1742081827826,0.02,618.97,618.48,0.92299703]
[1742081828027,0.02,618.97,618.49,0.92299703]
[1742081828322,0.02,618.97,618.5,0.92299703]
[1742081828527,0.02,618.97,618.51,0.92299703]
[1742081828728,0.02,618.97,618.52,0.92299703]
[1742081829031,0.02,618.97,618.53,0.92299703]
[1742081829328,0.02,618.97,618.54,0.92304817]
[1742081829529,0.02,618.97,618.55,0.92304817]
[1742081829829,0.02,618.97,618.56,0.92304817]
[1742081830030,0.02,618.97,618.57,0.92304817]
[1742081830329,0.02,618.97,618.58,0.92304817]
[1742081830530,0.02,618.97,618.42,4.19]
[1742081830830,0.02,618.97,618.43,0.92312744]
[1742081831030,0.02,618.97,618.44,0.92312744]
[1742081831226,0.02,618.97,618.42,4.19]
[1742081831227,0.02,618.97,618.45,0.92311025]
[1742081831430,0.02,618.97,618.46,0.92311025]
[1742081831626,0.02,618.97,618.47,0.92311025]
[1742081831832,0.02,618.97,618.48,0.92311025]
[1742081832032,0.02,618.97,618.49,0.92311025]
[1742081832234,0.02,618.97,618.5,0.92311025]
[1742081832430,0.02,618.97,618.51,0.92311025]
[1742081832629,0.02,618.97,618.52,0.92311025]
[1742081832831,0.02,618.97,618.53,0.92311025]
[1742081833127,0.02,618.97,618.42,4.19]
[1742081833334,0.02,618.97,618.43,0.9232196]
[1742081833524,0.02,618.97,618.44,0.9232196]
[1742081833729,0.02,618.97,618.45,0.9232196]
[1742081833926,0.02,618.97,618.46,0.9232196]
[1742081834128,0.02,618.97,618.47,0.9232196]
[1742081834332,0.02,618.97,618.48,0.9232196]
[1742081834629,0.02,618.97,618.49,0.9232196]
[1742081834826,0.02,618.97,618.5,0.9232196]
[1742081835034,0.02,618.97,618.51,0.9232196]
[1742081835232,0.02,618.97,618.52,0.9232196]
[1742081835426,0.02,618.97,618.53,0.9232196]
[1742081835629,0.02,618.97,618.54,0.9232196]
[1742081835831,0.02,618.97,618.55,0.9232196]
[1742081836031,0.02,618.97,618.56,0.9232196]
[1742081836332,0.02,618.97,618.57,0.9232196]
[1742081836532,0.02,618.97,618.58,0.9232196]
[1742081836733,0.02,618.97,618.59,0.9232196]
[1742081836935,0.02,618.97,618.42,4.19]
[1742081837233,0.02,618.97,618.43,0.92328555]
[1742081837432,0.02,618.97,618.44,0.92328555]
[1742081837632,0.02,618.97,618.45,0.92328555]
[1742081837832,0.02,618.97,618.46,0.92328555]
[1742081838028,0.02,618.97,618.47,0.92328555]
[1742081838227,0.02,618.97,618.48,0.92328555]
[1742081838428,0.02,618.97,618.49,0.92328555]
[1742081838733,0.02,618.97,618.42,4.19]
[1742081838734,0.02,618.97,618.5,0.92328555]
[1742081838934,0.02,618.97,618.51,0.92328555]
[1742081839126,0.02,618.97,618.52,0.92328555]
[1742081839328,0.02,618.97,618.53,0.92328555]
[1742081839531,0.02,618.97,618.54,0.92328555]
[1742081839832,0.02,618.97,618.55,0.92328555]
[1742081840032,0.02,618.97,618.56,0.92328555]
[1742081840228,0.02,618.97,618.57,0.92328555]
[1742081840427,0.02,618.97,618.58,0.92328555]
[1742081840632,0.02,618.97,618.59,0.92328555]
[1742081840832,0.02,618.97,618.42,4.19]
[1742081841028,0.02,618.97,618.43,0.92329091]
[1742081841331,0.867,618.97,618.44,0.9232859]
[1742081841533,0.867,618.97,618.45,0.9232859]
[1742081841832,0.867,618.97,618.46,0.9232859]
[1742081842036,0.867,618.97,618.47,0.9232859]
[1742081842233,0.867,618.97,618.48,0.9232859]
[1742081842435,0.867,618.97,618.49,0.9232859]
[1742081842728,0.867,618.97,618.5,0.9232859]
[1742081842935,0.867,618.97,618.51,0.9232859]
[1742081843129,0.867,618.97,618.52,0.9232859]
[1742081843331,0.867,618.97,618.53,0.92329275]
[1742081843532,0.867,618.97,618.54,0.92329275]
[1742081843732,0.867,618.97,618.55,0.92329275]
[1742081843934,0.867,618.97,618.56,0.92329275]
[1742081844134,0.867,618.97,618.42,4.19]
[1742081844135,0.867,618.97,618.57,0.92335445]
[1742081844435,0.867,618.97,618.58,0.92335445]
[1742081844636,0.867,618.97,618.59,0.92335445]
[1742081844835,0.867,618.97,618.6,0.92335445]
[1742081845035,0.867,618.97,618.61,0.92335445]
[1742081845336,0.867,618.97,618.62,0.92335445]
[1742081845533,0.867,618.97,618.63,0.9232667]
[1742081845836,0.867,618.97,618.42,4.19]
[1742081846036,0.867,618.97,618.43,0.92339593]
[1742081846235,0.867,618.97,618.44,0.92339593]
[1742081846435,0.867,618.97,618.45,0.92339593]
[1742081846631,0.867,618.97,618.46,0.92339593]
[1742081846831,0.867,618.97,618.47,0.92339593]
[1742081847035,0.867,618.97,618.48,0.92339593]
[1742081847235,0.867,618.97,618.49,0.92339593]
[1742081847536,0.867,618.97,618.5,0.92339593]
[1742081847736,0.867,618.97,618.51,0.92339593]
[1742081848037,0.867,618.97,618.42,4.19]
[1742081848038,0.867,618.97,618.52,0.92339593]
[1742081848237,0.867,618.97,618.53,0.92339593]
[1742081848436,0.867,618.97,618.54,0.92339593]
[1742081848632,0.867,618.97,618.55,0.92339593]
[1742081848937,0.867,618.97,618.56,0.92339593]
[1742081849138,0.867,618.97,618.57,0.92339593]
[1742081849333,0.867,618.97,618.58,0.92363398]
[1742081849537,0.867,618.97,618.59,0.92363398]
[1742081849838,0.867,618.97,618.6,0.92363398]
[1742081850034,0.867,618.97,618.61,0.92363398]
[1742081850234,0.867,618.97,618.42,4.19]
[1742081850433,0.867,618.97,618.43,0.92364539]
[1742081850638,0.867,618.97,618.44,0.92364539]
[1742081850833,0.867,618.97,618.45,0.92364539]
[1742081851039,0.867,618.97,618.46,0.92364539]
[1742081851236,0.867,618.97,618.47,0.92368127]
[1742081851441,0.867,618.97,618.48,0.92368127]
[1742081851642,0.867,618.97,618.49,0.92368127]
[1742081851837,0.867,618.97,618.5,0.92368127]
[1742081852037,0.867,618.97,618.51,0.92368127]
[1742081852242,0.867,618.97,618.52,0.92368127]
[1742081852438,0.867,618.97,618.53,0.92368127]
[1742081852642,0.867,618.97,618.54,0.92368127]
[1742081852844,0.867,618.97,618.55,0.92368127]
[1742081853044,0.867,618.97,618.56,0.92368127]
[1742081853241,0.867,618.97,618.57,0.92370522]
[1742081853445,0.867,618.97,618.58,0.92370522]
[1742081853645,0.867,618.97,618.59,0.92370522]
[1742081853846,0.867,618.97,618.6,0.92370522]
[1742081854042,0.867,618.97,618.61,0.92370522]
[1742081854246,0.867,618.97,618.62,0.92370522]
[1742081854441,0.867,618.97,618.63,0.92370522]
[1742081854743,0.867,618.97,618.42,4.19]
[1742081854945,0.867,618.97,618.43,0.92412812]
[1742081855146,0.867,618.97,618.44,0.92412812]
[1742081855345,0.867,618.97,618.42,4.19]
[1742081855346,0.867,618.97,618.45,0.92411416]
[1742081855545,0.867,618.97,618.46,0.92411416]
[1742081855746,0.867,618.97,618.47,0.92411416]